[Event "Titled Tuesday Blitz June 6 Late 2023"]
[White "exzore"]
[Black "Yanayt, Eugene"]
[BlackFideId "2020165"]
[WhiteElo "2738"]
[BlackElo "2083"]
[Result "0-1"]
[Round "4"]
[TimeControl "180+2"]
[Date "2023.06.07"]
[WhiteClock "0:00:24"]
[BlackClock "0:00:19"]
[Board "153"]

1. d4 {[%clk 0:02:25]}  Nf6 {[%clk 0:02:58]} 2. c4 {[%clk 0:02:24]}  g6 {[%clk 0:02:57]} 3. g3 {[%clk 0:02:23]}  Bg7 {[%clk 0:02:57]} 4. Bg2 {[%clk 0:02:22]}  O-O {[%clk 0:02:57]} 5. Nc3 {[%clk 0:02:17]}  c6 {[%clk 0:02:56]} 6. e4 {[%clk 0:02:14]}  a6 {[%clk 0:02:56]} 7. h4 {[%clk 0:02:06]}  d6 {[%clk 0:02:53]} 8. h5 {[%clk 0:02:03]}  Nxh5 {[%clk 0:02:53]} 9. Be3 {[%clk 0:02:00]}  e5 {[%clk 0:02:50]} 10. dxe5 {[%clk 0:01:52]}  dxe5 {[%clk 0:02:45]} 11. Qxd8 {[%clk 0:01:40]}  Rxd8 {[%clk 0:02:45]} 12. Bb6 {[%clk 0:01:41]}  Re8 {[%clk 0:02:41]} 13. O-O-O {[%clk 0:01:40]}  Be6 {[%clk 0:02:35]} 14. Nf3 {[%clk 0:01:39]}  Bxc4 {[%clk 0:02:26]} 15. Ng5 {[%clk 0:01:12]}  Bh6 {[%clk 0:02:18]} 16. Be3 {[%clk 0:01:12]}  f6 {[%clk 0:02:14]} 17. g4 {[%clk 0:01:12]}  Bxg5 {[%clk 0:01:50]} 18. Bxg5 {[%clk 0:01:12]}  Nf4 {[%clk 0:01:50]} 19. Bxf4 {[%clk 0:01:01]}  exf4 {[%clk 0:01:50]} 20. Rd6 {[%clk 0:01:01]}  Kf7 {[%clk 0:01:34]} 21. Na4 {[%clk 0:01:01]}  Ke7 {[%clk 0:01:30]} 22. Rhd1 {[%clk 0:01:01]}  b5 {[%clk 0:01:24]} 23. Nc5 {[%clk 0:00:57]}  Be2 {[%clk 0:01:02]} 24. R1d2 {[%clk 0:00:52]}  Bxg4 {[%clk 0:00:58]} 25. f3 {[%clk 0:00:53]}  Bc8 {[%clk 0:00:56]} 26. Bf1 {[%clk 0:00:45]}  Ra7 {[%clk 0:00:55]} 27. Nb3 {[%clk 0:00:44]}  Rd7 {[%clk 0:00:53]} 28. Rxd7+ {[%clk 0:00:45]}  Bxd7 {[%clk 0:00:52]} 29. Nc5 {[%clk 0:00:43]}  Bc8 {[%clk 0:00:50]} 30. Rh2 {[%clk 0:00:43]}  h5 {[%clk 0:00:47]} 31. Rh4 {[%clk 0:00:42]}  Rd8 {[%clk 0:00:45]} 32. Nd3 {[%clk 0:00:40]}  Kf7 {[%clk 0:00:40]} 33. Rh2 {[%clk 0:00:35]}  g5 {[%clk 0:00:31]} 34. Rxh5 {[%clk 0:00:34]}  Kg7 {[%clk 0:00:31]} 35. e5 {[%clk 0:00:33]}  Kg6 {[%clk 0:00:27]} 36. Rh2 {[%clk 0:00:32]}  Bf5 {[%clk 0:00:27]} 37. Nc5 {[%clk 0:00:26]}  fxe5 {[%clk 0:00:25]} 38. a4 {[%clk 0:00:26]}  Rd5 {[%clk 0:00:23]} 39. b4 {[%clk 0:00:26]}  a5 {[%clk 0:00:22]} 40. axb5 {[%clk 0:00:26]}  cxb5 {[%clk 0:00:22]} 41. Rh8 {[%clk 0:00:24]}  axb4 {[%clk 0:00:21]} 42. Ne4 {[%clk 0:00:21]}  Bxe4 {[%clk 0:00:18]} 43. fxe4 {[%clk 0:00:22]}  Rc5+ {[%clk 0:00:19]} 44. Kd2 {[%clk 0:00:23]}  Nc6 {[%clk 0:00:19]} 45. Rg8+ {[%clk 0:00:23]}  Kf6 {[%clk 0:00:19]} 46. Bh3 {[%clk 0:00:22]}  Nd4 {[%clk 0:00:18]} 47. Rf8+ {[%clk 0:00:23]}  Ke7 {[%clk 0:00:18]} 48. Rg8 {[%clk 0:00:23]}  Rc2+ {[%clk 0:00:18]} 49. Kd3 {[%clk 0:00:23]}  Rc3+ {[%clk 0:00:18]} 50. Kd2 {[%clk 0:00:23]}  Rxh3 {[%clk 0:00:18]} 51. Rxg5 {[%clk 0:00:24]}  b3 {[%clk 0:00:18]} 52. Rxe5+ {[%clk 0:00:23]}  Kf6 {[%clk 0:00:18]} 53. Rd5 {[%clk 0:00:23]}  b2 {[%clk 0:00:18]} 54. Rxd4 {[%clk 0:00:24]}  b1=Q {[%clk 0:00:19]} 0-1


[Site "https://www.chess.com"]

[Event "Titled Tuesday Blitz June 6 Late 2023"]
[White "slow_jamz"]
[Black "Miller, Ike S"]
[BlackFideId "2022532"]
[WhiteElo "2561"]
[BlackElo "2132"]
[Result "1-0"]
[Round "4"]
[TimeControl "180+2"]
[Date "2023.06.07"]
[WhiteClock "0:00:14"]
[BlackClock "0:00:12"]
[Board "154"]

1. d4 {[%clk 0:03:00]}  Nf6 {[%clk 0:02:59]} 2. c4 {[%clk 0:03:00]}  e6 {[%clk 0:02:59]} 3. Nc3 {[%clk 0:03:00]}  Bb4 {[%clk 0:02:59]} 4. e3 {[%clk 0:03:01]}  O-O {[%clk 0:02:58]} 5. Ne2 {[%clk 0:03:02]}  d5 {[%clk 0:02:51]} 6. a3 {[%clk 0:03:02]}  Be7 {[%clk 0:02:50]} 7. cxd5 {[%clk 0:03:02]}  Nxd5 {[%clk 0:02:49]} 8. e4 {[%clk 0:02:58]}  Nf6 {[%clk 0:02:46]} 9. Ng3 {[%clk 0:02:09]}  c5 {[%clk 0:02:03]} 10. d5 {[%clk 0:02:08]}  exd5 {[%clk 0:02:02]} 11. exd5 {[%clk 0:02:08]}  Bd6 {[%clk 0:01:33]} 12. Be2 {[%clk 0:02:08]}  Be5 {[%clk 0:01:33]} 13. Bf3 {[%clk 0:02:00]}  Na6 {[%clk 0:01:16]} 14. O-O {[%clk 0:01:58]}  c4 {[%clk 0:01:16]} 15. Re1 {[%clk 0:01:48]}  Re8 {[%clk 0:01:14]} 16. Bg5 {[%clk 0:01:43]}  Bd7 {[%clk 0:01:07]} 17. Nge4 {[%clk 0:01:22]}  h6 {[%clk 0:01:02]} 18. Bh4 {[%clk 0:01:21]}  g5 {[%clk 0:01:01]} 19. Bg3 {[%clk 0:01:21]}  Nxe4 {[%clk 0:00:59]} 20. Bxe4 {[%clk 0:01:10]}  Bxg3 {[%clk 0:00:56]} 21. hxg3 {[%clk 0:01:11]}  Nc5 {[%clk 0:00:56]} 22. Bc2 {[%clk 0:01:02]}  Qf6 {[%clk 0:00:53]} 23. Qd2 {[%clk 0:00:53]}  b6 {[%clk 0:00:36]} 24. Rxe8+ {[%clk 0:00:49]}  Rxe8 {[%clk 0:00:32]} 25. Re1 {[%clk 0:00:50]}  Rxe1+ {[%clk 0:00:30]} 26. Qxe1 {[%clk 0:00:51]}  Kg7 {[%clk 0:00:30]} 27. Qe2 {[%clk 0:00:48]}  Qd4 {[%clk 0:00:20]} 28. Kh2 {[%clk 0:00:32]}  b5 {[%clk 0:00:16]} 29. f3 {[%clk 0:00:32]}  a5 {[%clk 0:00:15]} 30. Qe7 {[%clk 0:00:20]}  b4 {[%clk 0:00:14]} 31. Ne4 {[%clk 0:00:21]}  Nxe4 {[%clk 0:00:14]} 32. Bxe4 {[%clk 0:00:22]}  Ba4 {[%clk 0:00:09]} 33. axb4 {[%clk 0:00:21]}  axb4 {[%clk 0:00:07]} 34. Qxb4 {[%clk 0:00:21]}  Bd1 {[%clk 0:00:06]} 35. d6 {[%clk 0:00:19]}  h5 {[%clk 0:00:01]} 36. Bf5 {[%clk 0:00:05]}  h4 {[%clk 0:00:01]} 37. Qc3 {[%clk 0:00:03]}  hxg3+ {[%clk 0:00:01]} 38. Kxg3 {[%clk 0:00:04]}  Qxc3 {[%clk 0:00:01]} 39. bxc3 {[%clk 0:00:04]}  Kf6 {[%clk 0:00:02]} 40. d7 {[%clk 0:00:05]}  Ke7 {[%clk 0:00:01]} 41. Kg4 {[%clk 0:00:05]}  f6 {[%clk 0:00:02]} 42. Kh5 {[%clk 0:00:05]}  Be2 {[%clk 0:00:02]} 43. Kg6 {[%clk 0:00:06]}  Bd1 {[%clk 0:00:02]} 44. f4 {[%clk 0:00:05]}  Ba4 {[%clk 0:00:03]} 45. fxg5 {[%clk 0:00:06]}  fxg5 {[%clk 0:00:03]} 46. Kxg5 {[%clk 0:00:07]}  Bxd7 {[%clk 0:00:04]} 47. Bxd7 {[%clk 0:00:08]}  Kxd7 {[%clk 0:00:04]} 48. Kf6 {[%clk 0:00:08]}  Kd6 {[%clk 0:00:05]} 49. g4 {[%clk 0:00:08]}  Kd5 {[%clk 0:00:06]} 50. Kf5 {[%clk 0:00:09]}  Kc5 {[%clk 0:00:06]} 51. g5 {[%clk 0:00:10]}  Kb5 {[%clk 0:00:07]} 52. g6 {[%clk 0:00:11]}  Ka4 {[%clk 0:00:08]} 53. g7 {[%clk 0:00:12]}  Kb3 {[%clk 0:00:09]} 54. g8=Q {[%clk 0:00:12]}  Kxc3 {[%clk 0:00:10]} 55. Ke4 {[%clk 0:00:12]}  Kb2 {[%clk 0:00:10]} 56. Qxc4 {[%clk 0:00:12]}  Kb1 {[%clk 0:00:11]} 57. Qe2 {[%clk 0:00:12]}  Kc1 {[%clk 0:00:11]} 58. Kd3 {[%clk 0:00:13]}  Kb1 {[%clk 0:00:12]} 59. Kc3 {[%clk 0:00:13]}  Kc1 {[%clk 0:00:12]} 60. Qc2# {[%clk 0:00:14]} 1-0


[Site "https://www.chess.com"]

[Event "Titled Tuesday Blitz June 6 Late 2023"]
[White "Huber, Benedikt"]
[Black "Kostiukov, Alexandr"]
[WhiteFideId "12923583"]
[BlackFideId "14108100"]
[WhiteElo "2215"]
[BlackElo "2202"]
[Result "1-0"]
[Round "4"]
[TimeControl "180+2"]
[Date "2023.06.07"]
[WhiteClock "0:00:06"]
[BlackClock "0:00:01"]
[Board "155"]

1. d4 {[%clk 0:02:59]}  g6 {[%clk 0:02:55]} 2. e4 {[%clk 0:02:56]}  Bg7 {[%clk 0:02:54]} 3. Nf3 {[%clk 0:02:54]}  d6 {[%clk 0:02:54]} 4. Nc3 {[%clk 0:02:51]}  a6 {[%clk 0:02:54]} 5. a4 {[%clk 0:02:51]}  Nc6 {[%clk 0:02:52]} 6. Be2 {[%clk 0:02:43]}  Nf6 {[%clk 0:02:51]} 7. d5 {[%clk 0:02:38]}  Nb4 {[%clk 0:02:51]} 8. O-O {[%clk 0:02:30]}  O-O {[%clk 0:02:50]} 9. h3 {[%clk 0:02:29]}  e6 {[%clk 0:02:50]} 10. dxe6 {[%clk 0:02:28]}  Bxe6 {[%clk 0:02:41]} 11. Nd4 {[%clk 0:02:28]}  Bd7 {[%clk 0:02:40]} 12. Bg5 {[%clk 0:02:23]}  h6 {[%clk 0:02:35]} 13. Bh4 {[%clk 0:02:23]}  g5 {[%clk 0:02:21]} 14. Bg3 {[%clk 0:02:23]}  Re8 {[%clk 0:02:21]} 15. Qd2 {[%clk 0:02:07]}  Nxe4 {[%clk 0:02:15]} 16. Nxe4 {[%clk 0:01:57]}  Rxe4 {[%clk 0:02:14]} 17. c3 {[%clk 0:01:55]}  Nc6 {[%clk 0:02:09]} 18. Bd3 {[%clk 0:01:55]}  Nxd4 {[%clk 0:01:46]} 19. Bxe4 {[%clk 0:01:53]}  Nb3 {[%clk 0:01:46]} 20. Qd3 {[%clk 0:01:36]}  Nxa1 {[%clk 0:01:45]} 21. Rxa1 {[%clk 0:01:37]}  Bc6 {[%clk 0:01:36]} 22. Bxc6 {[%clk 0:01:30]}  bxc6 {[%clk 0:01:37]} 23. Re1 {[%clk 0:01:30]}  c5 {[%clk 0:01:21]} 24. a5 {[%clk 0:01:26]}  Qd7 {[%clk 0:01:19]} 25. h4 {[%clk 0:01:20]}  Bf6 {[%clk 0:01:10]} 26. hxg5 {[%clk 0:01:19]}  hxg5 {[%clk 0:01:11]} 27. f3 {[%clk 0:01:10]}  Rb8 {[%clk 0:01:00]} 28. Qxa6 {[%clk 0:00:49]}  Rxb2 {[%clk 0:00:54]} 29. Qc4 {[%clk 0:00:49]}  Qb5 {[%clk 0:00:47]} 30. Qg4 {[%clk 0:00:20]}  Rb1 {[%clk 0:00:20]} 31. Rxb1 {[%clk 0:00:15]}  Qxb1+ {[%clk 0:00:20]} 32. Kh2 {[%clk 0:00:16]}  Qh7+ {[%clk 0:00:19]} 33. Kg1 {[%clk 0:00:16]}  Qb1+ {[%clk 0:00:18]} 34. Kh2 {[%clk 0:00:16]}  Qb7 {[%clk 0:00:13]} 35. Bf4 {[%clk 0:00:11]}  Qd5 {[%clk 0:00:08]} 36. a6 {[%clk 0:00:10]}  Kf8 {[%clk 0:00:07]} 37. Qc8+ {[%clk 0:00:06]}  Kg7 {[%clk 0:00:06]} 38. a7 {[%clk 0:00:07]}  gxf4 {[%clk 0:00:01]} 39. a8=Q {[%clk 0:00:06]}  Qh5+ {[%clk 0:00:01]} 40. Qh3 {[%clk 0:00:06]} 1-0


[Site "https://www.chess.com"]

[Event "Titled Tuesday Blitz June 6 Late 2023"]
[White "Guimaraes, Wagner Peixoto"]
[Black "SergioMoralesG"]
[WhiteFideId "2100940"]
[WhiteElo "2148"]
[BlackElo "2483"]
[Result "1-0"]
[Round "4"]
[TimeControl "180+2"]
[Date "2023.06.07"]
[WhiteClock "0:00:45"]
[BlackClock "0:00:20"]
[Board "158"]

1. e4 {[%clk 0:03:00]}  c5 {[%clk 0:02:59]} 2. Nf3 {[%clk 0:02:58]}  d6 {[%clk 0:02:59]} 3. Bb5+ {[%clk 0:02:58]}  Nd7 {[%clk 0:02:58]} 4. d4 {[%clk 0:02:57]}  cxd4 {[%clk 0:02:58]} 5. Qxd4 {[%clk 0:02:58]}  Nf6 {[%clk 0:02:57]} 6. c4 {[%clk 0:02:56]}  e5 {[%clk 0:02:57]} 7. Qd3 {[%clk 0:02:56]}  Be7 {[%clk 0:02:57]} 8. Nc3 {[%clk 0:02:54]}  O-O {[%clk 0:02:57]} 9. Bxd7 {[%clk 0:02:50]}  Nxd7 {[%clk 0:02:57]} 10. Be3 {[%clk 0:02:48]}  f5 {[%clk 0:02:54]} 11. exf5 {[%clk 0:02:47]}  Nb6 {[%clk 0:02:51]} 12. Bxb6 {[%clk 0:02:40]}  axb6 {[%clk 0:02:44]} 13. O-O {[%clk 0:02:36]}  Bxf5 {[%clk 0:02:44]} 14. Qd5+ {[%clk 0:02:36]}  Kh8 {[%clk 0:02:43]} 15. Qxb7 {[%clk 0:02:34]}  e4 {[%clk 0:02:37]} 16. Nd4 {[%clk 0:02:26]}  Rc8 {[%clk 0:01:55]} 17. Nc6 {[%clk 0:01:44]}  Rxc6 {[%clk 0:01:41]} 18. Qxc6 {[%clk 0:01:43]}  Qc8 {[%clk 0:01:29]} 19. Qxc8 {[%clk 0:01:42]}  Rxc8 {[%clk 0:01:30]} 20. Nd5 {[%clk 0:01:37]}  Bd8 {[%clk 0:01:26]} 21. b3 {[%clk 0:01:38]}  Kg8 {[%clk 0:01:20]} 22. Rad1 {[%clk 0:01:37]}  Kf7 {[%clk 0:01:19]} 23. Ne3 {[%clk 0:01:36]}  Bg6 {[%clk 0:01:13]} 24. Rxd6 {[%clk 0:01:36]}  Ra8 {[%clk 0:01:09]} 25. a4 {[%clk 0:01:35]}  Rb8 {[%clk 0:00:46]} 26. Rfd1 {[%clk 0:01:33]}  Be7 {[%clk 0:00:46]} 27. Rd7 {[%clk 0:01:33]}  Kf8 {[%clk 0:00:46]} 28. Ra7 {[%clk 0:01:18]}  Bc5 {[%clk 0:00:43]} 29. Rdd7 {[%clk 0:01:15]}  b5 {[%clk 0:00:42]} 30. cxb5 {[%clk 0:01:12]}  Bxa7 {[%clk 0:00:42]} 31. Rxa7 {[%clk 0:01:13]}  Bf7 {[%clk 0:00:37]} 32. Nc4 {[%clk 0:01:08]}  Rd8 {[%clk 0:00:34]} 33. h3 {[%clk 0:01:06]}  Rd3 {[%clk 0:00:34]} 34. Rxf7+ {[%clk 0:00:45]}  Kxf7 {[%clk 0:00:32]} 35. Ne5+ {[%clk 0:00:45]}  Ke6 {[%clk 0:00:32]} 36. Nxd3 {[%clk 0:00:45]}  exd3 {[%clk 0:00:33]} 37. Kf1 {[%clk 0:00:46]}  Kd5 {[%clk 0:00:32]} 38. Ke1 {[%clk 0:00:46]}  g5 {[%clk 0:00:20]} 39. Kd2 {[%clk 0:00:45]}  Kd4 {[%clk 0:00:20]} 40. b6 {[%clk 0:00:45]} 1-0


[Site "https://www.chess.com"]

[Event "Titled Tuesday Blitz June 6 Late 2023"]
[White "Vila Dupla, Aurelio"]
[Black "Wizard_of_Odds"]
[WhiteFideId "2203383"]
[WhiteElo "2009"]
[BlackElo "2422"]
[Result "1-0"]
[Round "4"]
[TimeControl "180+2"]
[Date "2023.06.07"]
[WhiteClock "0:00:07"]
[BlackClock "0:00:01"]
[Board "159"]

1. Nf3 {[%clk 0:03:00]}  Nf6 {[%clk 0:02:57]} 2. d4 {[%clk 0:02:59]}  e6 {[%clk 0:02:54]} 3. g3 {[%clk 0:02:52]}  b6 {[%clk 0:02:54]} 4. Bg2 {[%clk 0:02:52]}  Bb7 {[%clk 0:02:55]} 5. O-O {[%clk 0:02:53]}  Be7 {[%clk 0:02:52]} 6. c4 {[%clk 0:02:52]}  O-O {[%clk 0:02:52]} 7. Nc3 {[%clk 0:02:52]}  d6 {[%clk 0:02:44]} 8. b3 {[%clk 0:02:43]}  c5 {[%clk 0:02:38]} 9. Bb2 {[%clk 0:02:41]}  Nbd7 {[%clk 0:02:34]} 10. Re1 {[%clk 0:02:28]}  a6 {[%clk 0:02:32]} 11. Rc1 {[%clk 0:02:26]}  Qc7 {[%clk 0:02:29]} 12. e4 {[%clk 0:02:23]}  cxd4 {[%clk 0:02:28]} 13. Nxd4 {[%clk 0:02:23]}  Rac8 {[%clk 0:02:20]} 14. h3 {[%clk 0:02:16]}  Rfe8 {[%clk 0:02:15]} 15. Qd2 {[%clk 0:02:14]}  Qb8 {[%clk 0:02:13]} 16. Re2 {[%clk 0:01:49]}  h5 {[%clk 0:01:41]} 17. Rce1 {[%clk 0:01:41]}  Bd8 {[%clk 0:01:21]} 18. Nf3 {[%clk 0:01:39]}  Bc7 {[%clk 0:01:16]} 19. Ng5 {[%clk 0:01:34]}  h4 {[%clk 0:01:07]} 20. g4 {[%clk 0:01:17]}  Ne5 {[%clk 0:00:59]} 21. f4 {[%clk 0:01:10]}  Ned7 {[%clk 0:00:53]} 22. Nd1 {[%clk 0:00:59]}  d5 {[%clk 0:00:51]} 23. e5 {[%clk 0:00:56]}  Nh7 {[%clk 0:00:31]} 24. Nxh7 {[%clk 0:00:45]}  Kxh7 {[%clk 0:00:32]} 25. cxd5 {[%clk 0:00:43]}  exd5 {[%clk 0:00:30]} 26. Bxd5 {[%clk 0:00:41]}  Nc5 {[%clk 0:00:23]} 27. Bxb7 {[%clk 0:00:22]}  Qxb7 {[%clk 0:00:21]} 28. f5 {[%clk 0:00:22]}  Kg8 {[%clk 0:00:04]} 29. Qg5 {[%clk 0:00:20]}  Bd8 {[%clk 0:00:04]} 30. f6 {[%clk 0:00:20]}  g6 {[%clk 0:00:02]} 31. Qh6 {[%clk 0:00:20]}  Ne6 {[%clk 0:00:02]} 32. Qxh4 {[%clk 0:00:14]}  Qd7 {[%clk 0:00:01]} 33. Ne3 {[%clk 0:00:13]}  Qb5 {[%clk 0:00:02]} 34. Nf5 {[%clk 0:00:12]}  Qb4 {[%clk 0:00:01]} 35. Nh6+ {[%clk 0:00:11]}  Kf8 {[%clk 0:00:02]} 36. Nxf7 {[%clk 0:00:12]}  Kxf7 {[%clk 0:00:02]} 37. Qh7+ {[%clk 0:00:12]}  Kf8 {[%clk 0:00:02]} 38. Qh8+ {[%clk 0:00:11]}  Kf7 {[%clk 0:00:03]} 39. Qh7+ {[%clk 0:00:12]}  Kf8 {[%clk 0:00:03]} 40. Qxg6 {[%clk 0:00:13]}  Qc5+ {[%clk 0:00:02]} 41. Rf2 {[%clk 0:00:11]}  Qb4 {[%clk 0:00:01]} 42. Ref1 {[%clk 0:00:07]} 1-0


[Site "https://www.chess.com"]

[Event "Titled Tuesday Blitz June 6 Late 2023"]
[White "Osmonbekov, Talaibek"]
[Black "Omariev, Maksim"]
[WhiteFideId "2017253"]
[BlackFideId "4193423"]
[WhiteElo "2135"]
[BlackElo "2409"]
[Result "0-1"]
[Round "4"]
[TimeControl "180+2"]
[Date "2023.06.07"]
[WhiteClock "0:00:04"]
[BlackClock "0:00:02"]
[Board "161"]

1. d4 {[%clk 0:03:00]}  h5 {[%clk 0:02:45]} 2. Nc3 {[%clk 0:03:01]}  h4 {[%clk 0:02:46]} 3. h3 {[%clk 0:02:57]}  d5 {[%clk 0:02:44]} 4. Bf4 {[%clk 0:02:55]}  Nf6 {[%clk 0:02:37]} 5. e3 {[%clk 0:02:53]}  Bf5 {[%clk 0:02:35]} 6. Nf3 {[%clk 0:02:51]}  e6 {[%clk 0:02:36]} 7. Bd3 {[%clk 0:02:42]}  Bxd3 {[%clk 0:02:34]} 8. Qxd3 {[%clk 0:02:39]}  Nbd7 {[%clk 0:02:26]} 9. Nb5 {[%clk 0:02:34]}  Rc8 {[%clk 0:02:12]} 10. Nxa7 {[%clk 0:02:19]}  Ra8 {[%clk 0:02:11]} 11. Nb5 {[%clk 0:02:18]}  Rc8 {[%clk 0:02:06]} 12. c4 {[%clk 0:02:09]}  Bb4+ {[%clk 0:02:04]} 13. Nc3 {[%clk 0:02:07]}  dxc4 {[%clk 0:01:54]} 14. Qxc4 {[%clk 0:02:01]}  Nd5 {[%clk 0:01:55]} 15. Bh2 {[%clk 0:01:40]}  c5 {[%clk 0:01:53]} 16. O-O {[%clk 0:01:32]}  Bxc3 {[%clk 0:01:34]} 17. bxc3 {[%clk 0:01:27]}  cxd4 {[%clk 0:01:31]} 18. Qxd4 {[%clk 0:01:26]}  Qf6 {[%clk 0:01:24]} 19. Ne5 {[%clk 0:01:10]}  Nc5 {[%clk 0:00:20]} 20. Rab1 {[%clk 0:00:39]}  O-O {[%clk 0:00:16]} 21. Ng4 {[%clk 0:00:36]}  Qg5 {[%clk 0:00:09]} 22. c4 {[%clk 0:00:31]}  Ne7 {[%clk 0:00:07]} 23. Bf4 {[%clk 0:00:23]}  Qh5 {[%clk 0:00:05]} 24. Bd6 {[%clk 0:00:20]}  Nf5 {[%clk 0:00:04]} 25. Qe5 {[%clk 0:00:18]}  Nd7 {[%clk 0:00:04]} 26. Qh2 {[%clk 0:00:11]}  Nxd6 {[%clk 0:00:02]} 27. Qxd6 {[%clk 0:00:10]}  Rfd8 {[%clk 0:00:03]} 28. Rxb7 {[%clk 0:00:08]}  Nc5 {[%clk 0:00:03]} 29. Qe7 {[%clk 0:00:05]}  Nxb7 {[%clk 0:00:02]} 30. Qxb7 {[%clk 0:00:05]}  Rxc4 {[%clk 0:00:02]} 31. Qe7 {[%clk 0:00:04]}  Rdc8 {[%clk 0:00:02]} 0-1


[Site "https://www.chess.com"]

[Event "Titled Tuesday Blitz June 6 Late 2023"]
[White "KSho99"]
[Black "Buchenau, Frank"]
[BlackFideId "4604350"]
[WhiteElo "2186"]
[BlackElo "2157"]
[Result "1-0"]
[Round "4"]
[TimeControl "180+2"]
[Date "2023.06.07"]
[WhiteClock "0:00:46"]
[BlackClock "0:01:41"]
[Board "162"]

1. Nf3 {[%clk 0:03:00]}  Nf6 {[%clk 0:02:55]} 2. b3 {[%clk 0:03:01]}  e6 {[%clk 0:02:54]} 3. Bb2 {[%clk 0:03:00]}  b6 {[%clk 0:02:54]} 4. e3 {[%clk 0:02:57]}  Bb7 {[%clk 0:02:54]} 5. d4 {[%clk 0:02:57]}  c5 {[%clk 0:02:53]} 6. Nbd2 {[%clk 0:02:49]}  Nc6 {[%clk 0:02:52]} 7. c4 {[%clk 0:02:41]}  cxd4 {[%clk 0:02:51]} 8. exd4 {[%clk 0:02:41]}  d5 {[%clk 0:02:51]} 9. Bd3 {[%clk 0:02:38]}  g6 {[%clk 0:02:49]} 10. O-O {[%clk 0:02:36]}  Nb4 {[%clk 0:02:48]} 11. Bb1 {[%clk 0:02:34]}  Bg7 {[%clk 0:02:48]} 12. a3 {[%clk 0:02:29]}  Nc6 {[%clk 0:02:47]} 13. Re1 {[%clk 0:02:27]}  O-O {[%clk 0:02:47]} 14. Qe2 {[%clk 0:02:23]}  Rc8 {[%clk 0:02:46]} 15. Ne5 {[%clk 0:02:17]}  dxc4 {[%clk 0:02:43]} 16. Nxc6 {[%clk 0:02:02]}  Bxc6 {[%clk 0:02:43]} 17. bxc4 {[%clk 0:02:00]}  Nh5 {[%clk 0:02:38]} 18. Nf3 {[%clk 0:01:54]}  Nf4 {[%clk 0:02:37]} 19. Qe3 {[%clk 0:01:52]}  Bh6 {[%clk 0:02:36]} 20. Qc3 {[%clk 0:01:39]}  b5 {[%clk 0:02:17]} 21. d5 {[%clk 0:01:36]}  e5 {[%clk 0:02:02]} 22. dxc6 {[%clk 0:01:21]}  Rxc6 {[%clk 0:01:59]} 23. Qxe5 {[%clk 0:01:18]}  f6 {[%clk 0:01:58]} 24. Qe7 {[%clk 0:00:57]}  Rxc4 {[%clk 0:01:44]} 25. Qxd8 {[%clk 0:00:50]}  Rxd8 {[%clk 0:01:43]} 26. Ba2 {[%clk 0:00:50]}  Nd3 {[%clk 0:01:41]} 27. Re2 {[%clk 0:00:46]} 1-0


[Site "https://www.chess.com"]

[Event "Titled Tuesday Blitz June 6 Late 2023"]
[White "Djordjevic, Dejan N"]
[Black "The_Straightforward_Rook"]
[WhiteFideId "913316"]
[WhiteElo "2261"]
[BlackElo "2382"]
[Result "0-1"]
[Round "4"]
[TimeControl "180+2"]
[Date "2023.06.07"]
[WhiteClock "0:00:06"]
[BlackClock "0:01:15"]
[Board "163"]

1. e4 {[%clk 0:03:00]}  e5 {[%clk 0:02:54]} 2. Nf3 {[%clk 0:03:00]}  Nc6 {[%clk 0:02:54]} 3. Bc4 {[%clk 0:02:59]}  Bc5 {[%clk 0:02:54]} 4. c3 {[%clk 0:02:57]}  Nf6 {[%clk 0:02:53]} 5. d3 {[%clk 0:02:55]}  a6 {[%clk 0:02:52]} 6. O-O {[%clk 0:02:53]}  Ba7 {[%clk 0:02:49]} 7. Re1 {[%clk 0:02:52]}  d6 {[%clk 0:02:49]} 8. Bb3 {[%clk 0:02:49]}  h6 {[%clk 0:02:49]} 9. Nbd2 {[%clk 0:02:49]}  g5 {[%clk 0:02:49]} 10. Nf1 {[%clk 0:02:48]}  g4 {[%clk 0:02:49]} 11. N3d2 {[%clk 0:02:41]}  h5 {[%clk 0:02:48]} 12. Nc4 {[%clk 0:02:41]}  h4 {[%clk 0:02:47]} 13. Bg5 {[%clk 0:02:39]}  g3 {[%clk 0:02:39]} 14. hxg3 {[%clk 0:02:36]}  Nxe4 {[%clk 0:02:29]} 15. Rxe4 {[%clk 0:02:12]}  Qxg5 {[%clk 0:02:26]} 16. gxh4 {[%clk 0:02:10]}  Rxh4 {[%clk 0:02:24]} 17. Rxh4 {[%clk 0:02:09]}  Qxh4 {[%clk 0:02:25]} 18. Qf3 {[%clk 0:02:09]}  Be6 {[%clk 0:02:18]} 19. Nce3 {[%clk 0:01:54]}  O-O-O {[%clk 0:02:14]} 20. Bxe6+ {[%clk 0:01:53]}  fxe6 {[%clk 0:02:15]} 21. Qg4 {[%clk 0:01:50]}  Qh6 {[%clk 0:02:12]} 22. Qh3 {[%clk 0:01:28]}  Qf6 {[%clk 0:01:59]} 23. Ng4 {[%clk 0:01:15]}  Qg7 {[%clk 0:01:54]} 24. Nfe3 {[%clk 0:00:54]}  Rh8 {[%clk 0:01:52]} 25. Qf3 {[%clk 0:00:53]}  Qh7 {[%clk 0:01:40]} 26. g3 {[%clk 0:00:51]}  Qxd3 {[%clk 0:01:37]} 27. Kg2 {[%clk 0:00:43]}  Qh7 {[%clk 0:01:26]} 28. Kg1 {[%clk 0:00:28]}  Ne7 {[%clk 0:01:25]} 29. Qg2 {[%clk 0:00:25]}  Nf5 {[%clk 0:01:24]} 30. Nc4 {[%clk 0:00:15]}  Nxg3 {[%clk 0:01:19]} 31. Nf6 {[%clk 0:00:09]}  Qh1+ {[%clk 0:01:17]} 32. Qxh1 {[%clk 0:00:09]}  Rxh1+ {[%clk 0:01:18]} 33. Kg2 {[%clk 0:00:09]}  Rxa1 {[%clk 0:01:18]} 34. fxg3 {[%clk 0:00:10]}  Rxa2 {[%clk 0:01:18]} 35. g4 {[%clk 0:00:10]}  b5 {[%clk 0:01:17]} 36. Na3 {[%clk 0:00:06]}  Rxb2+ {[%clk 0:01:16]} 37. Kf3 {[%clk 0:00:06]}  Rf2+ {[%clk 0:01:15]} 0-1


[Site "https://www.chess.com"]